[Event "NY Presidents Day Schiller-C 2024"]
[Site "New York"]
[Date "2024.02.17"]
[Round "4.2"]
[White "Pagan, Jonathan"]
[Black "Quesada Vera, Liordis"]
[Result "1/2-1/2"]
[ECO "B38"]
[WhiteElo "2018"]
[BlackElo "2337"]
[Annotator "RC"]
[PlyCount "36"]
[EventDate "2024.02.14"]
[EventType "schev"]
[EventCountry "USA"]
[SourceTitle "playchess.com"]
[Source "ChessBase"]
[SourceQuality "1"]
[TimeControl "5400+30"]

1. c4 {[%emt 0:00:03]} c5 {[%emt 0:32:42]} 2. Nf3 {[%emt 0:00:06]} g6 {[%emt 0:00:12]} 3. e4 {[%emt 0:00:07]} Bg7 {[%emt 0:00:31]} 4. d4 {[%emt 0:00:09]} cxd4 {[%emt 0:00:22]} 5. Nxd4 {[%emt 0:00:04]} Nc6 {[%emt 0:00:05]} 6. Be3 {[%emt 0:00:05]} d6 {[%emt 0:02:46]} 7. Nc3 {[%emt 0:00:19]} Bd7 {[%emt 0:00:05]} 8. Be2 {[%emt 0:00:35]} Nf6 {[%emt 0:00:10]} 9. h3 {[%emt 0:01:48]} O-O {[%emt 0:00:06]} 10. O-O {[%emt 0:00:04]} Nxd4 {[%emt 0:00:13]} 11. Bxd4 {[%emt 0:00:05]} Bc6 {[%emt 0:00:07]} 12. Qc2 {[%emt 0:00:03]} a5 {[%emt 0:00:44]} 13. Rad1 {[%emt 0:00:46]} Qc7 {[%emt 0:08:52]} 14. Rfe1 {[%emt 0:12:25]} Nd7 {[%emt 0:22:36]} 15. Bxg7 {[%emt 0:00:58]} Kxg7 {[%emt 0:00:10]} 16. Bf1 {[%emt 0:00:27]} Nc5 {[%emt 0:00:42]} 17. Qd2 {[%emt 0:06:24]} Rad8 {[%emt 0:00:19]} 18. Nd5 {[%emt 0:00:41]} Bxd5 {[%emt 0:28:48]} 1/2-1/2

[Event "NY Presidents Day Schiller-C 2024"]
[Site "New York"]
[Date "2024.02.17"]
[Round "4.3"]
[White "Ho, Carter"]
[Black "Perez Avendano, Paul Omar"]
[Result "0-1"]
[ECO "B80"]
[WhiteElo "2180"]
[BlackElo "2213"]
[Annotator "RC"]
[PlyCount "100"]
[EventDate "2024.02.14"]
[EventType "schev"]
[EventCountry "USA"]
[SourceTitle "playchess.com"]
[Source "ChessBase"]
[SourceQuality "1"]
[TimeControl "5400+30"]

1. e4 {[%emt 0:01:05]} c5 {[%emt 0:00:15]} 2. Nf3 {[%emt 0:00:12]} d6 {[%emt 0:00:11]} 3. d4 {[%emt 0:00:06]} cxd4 {[%emt 0:00:08]} 4. Nxd4 {[%emt 0:00:11]} Nf6 {[%emt 0:00:41]} 5. Nc3 {[%emt 0:00:04]} a6 {[%emt 0:00:59]} 6. f3 {[%emt 0:00:06]} e6 {[%emt 0:02:55]} 7. Be3 {[%emt 0:00:07]} Qc7 {[%emt 0:00:11]} 8. Qd2 {[%emt 0:00:24]} h5 {[%emt 0:00:59]} 9. O-O-O {[%emt 0:02:17]} Nbd7 {[%emt 0:00:54]} 10. Nb3 {[%emt 0:18:45]} b5 {[%emt 0:05:43]} 11. a3 {[%emt 0:00:30]} Bb7 {[%emt 0:11:47]} 12. Ne2 {[%emt 0:03:44]} d5 {[%emt 0:02:42]} 13. exd5 {[%emt 0:04:11]} Nxd5 {[%emt 0:00:32]} 14. Bd4 {[%emt 0:02:21]} b4 {[%emt 0:05:50]} 15. a4 {[%emt 0:01:58]} Bc6 {[%emt 0:07:55]} 16. a5 {[%emt 0:01:02]} Ba4 {[%emt 0:03:01]} 17. Kb1 {[%emt 0:00:18]} h4 {[%emt 0:03:28]} 18. f4 {[%emt 0:03:33]} N7f6 {[%emt 0:01:49]} 19. Be5 {[%emt 0:02:16]} Bd6 {[%emt 0:01:58]} 20. Bxd6 {[%emt 0:02:23]} Qxd6 {[%emt 0:00:14]} 21. f5 {[%emt 0:03:14]} O-O {[%emt 0:09:19]} 22. g4 {[%emt 0:00:52]} Rad8 {[%emt 0:05:23]} 23. Ned4 {[%emt 0:03:37]} e5 {[%emt 0:02:45]} 24. Nf3 {[%emt 0:00:32]} Ne4 {[%emt 0:01:51]} 25. Qxd5 {[%emt 0:00:43]} Qxd5 {[%emt 0:00:08]} 26. Rxd5 {[%emt 0:00:05]} Rxd5 {[%emt 0:00:05]} 27. Bc4 {[%emt 0:00:43]} Bxb3 {[%emt 0:00:14]} 28. cxb3 {[%emt 0:00:11]} Nd2+ {[%emt 0:02:08]} 29. Kc2 {[%emt 0:00:41]} Nxc4 {[%emt 0:00:18]} 30. bxc4 {[%emt 0:00:07]} Rxa5 {[%emt 0:00:22]} 31. Re1 {[%emt 0:00:32]} Rc5 {[%emt 0:02:00]} 32. b3 {[%emt 0:00:16]} Re8 {[%emt 0:00:58]} 33. Ng5 {[%emt 0:00:42]} Ra5 {[%emt 0:00:30]} 34. Kb2 {[%emt 0:00:10]} Rd8 {[%emt 0:00:46]} 35. Ne4 {[%emt 0:00:45]} Rd3 {[%emt 0:02:57]} 36. c5 {[%emt 0:00:14]} Ra3 {[%emt 0:01:23]} 37. c6 {[%emt 0:01:20]} Rdxb3+ {[%emt 0:00:07]} 38. Kc2 {[%emt 0:00:10]} Rc3+ {[%emt 0:03:56]} 39. Nxc3 {[%emt 0:00:09]} Rxc3+ {[%emt 0:00:04]} 40. Kb2 {[%emt 0:00:21]} Rxc6 {[%emt 0:00:29]} 41. Rxe5 {[%emt 0:00:21]} f6 {[%emt 0:00:37]} 42. Rd5 {[%emt 0:00:36]} Rc4 {[%emt 0:00:31]} 43. h3 {[%emt 0:00:19]} Rc3 {[%emt 0:00:19]} 44. Rd8+ {[%emt 0:01:17]} Kh7 {[%emt 0:00:20]} 45. Rd7 {[%emt 0:00:23]} Kh6 {[%emt 0:03:06]} 46. g5+ {[%emt 0:00:27]} fxg5 {[%emt 0:00:12]} 47. Rd6+ {[%emt 0:00:11]} Kh5 {[%emt 0:00:23]} 48. Rg6 {[%emt 0:00:52]} Rf3 {[%emt 0:01:41]} 49. Rxg7 {[%emt 0:00:20]} Rxf5 {[%emt 0:00:09]} 50. Kb3 {[%emt 0:00:09]} a5 {[%emt 0:00:10]} 0-1

[Event "NY Presidents Day Schiller-C 2024"]
[Site "New York"]
[Date "2024.02.17"]
[Round "4.4"]
[White "Andrianov, Nikolai"]
[Black "Tang, Benjamin"]
[Result "1/2-1/2"]
[ECO "D75"]
[WhiteElo "2266"]
[BlackElo "2167"]
[Annotator "TA"]
[PlyCount "30"]
[EventDate "2024.02.14"]
[EventType "schev"]
[EventCountry "USA"]
[SourceTitle "playchess.com"]
[Source "ChessBase"]
[SourceQuality "1"]
[TimeControl "5400+30"]

{[%evp 23,30,8,20,19,14,10,6,14,11]} 1. d4 {[%emt 0:00:01]} Nf6 {[%emt 0:03:15]} 2. Nf3 {[%emt 0:00:09]} g6 {[%emt 0:00:03]} 3. g3 {[%emt 0:00:13]} Bg7 {[%emt 0:00:06]} 4. Bg2 {[%emt 1:32:07]} c5 {[%emt 0:00:07]} 5. c4 {[%emt 0:00:00]} O-O {[%emt 0:00:57]} 6. O-O {[%emt 0:00:00]} cxd4 {[%emt 0:00:58]} 7. Nxd4 {[%emt 0:00:00]} d5 {[%emt 0:00:05]} 8. cxd5 {[%emt 0:00:00]} Nxd5 {[%emt 0:00:03]} 9. Nc3 {[%emt 0:00:00]} Nxc3 {[%emt 0:00:36]} 10. bxc3 {[%emt 0:00:00]} Nc6 {[%emt 0:00:07]} 11. Nxc6 {[%emt 0:00:00]} bxc6 {[%emt 0:00:05]} 12. Qxd8 {[%emt 0:00:00]} Rxd8 {[%emt 0:00:05] The position is equal.} 13. Bxc6 {[%emt 0:00:00]} Rb8 {[%emt 0:00:05][%cal Oc8h3]} 14. Be3 {[%emt 0:00:00]} Be6 {[%emt 0:00:24]} 15. Bxa7 {[%emt 0:00:00]} Rbc8 $1 {[%emt 0:00:05] An uneventful encounter.   Weighted Error Value: White=0.01 (flawless) /Black=0.00 (flawless) .  OK:         	White=1     	Black=1      Strong:       	---       	Black=1} 1/2-1/2

[Event "NY Presidents Day Schiller-C 2024"]
[Site "New York"]
[Date "2024.02.17"]
[Round "4.5"]
[White "Plat, Vojtech"]
[Black "Meduri, Aakaash"]
[Result "1-0"]
[ECO "C41"]
[WhiteElo "2516"]
[BlackElo "1956"]
[Annotator "TA"]
[PlyCount "61"]
[EventDate "2024.02.14"]
[EventType "schev"]
[EventCountry "USA"]
[SourceTitle "playchess.com"]
[Source "ChessBase"]
[SourceQuality "1"]
[TimeControl "5400+30"]

{[%evp 14,61,20,26,42,37,66,58,60,54,46,47,50,48,52,57,113,20,18,13,17,23,27,25,18,16,113,115,119,111,135,120,126,123,138,124,136,135,220,226,226,214,226,220,288,265,265,216,390,389]} 1. e4 {[%emt 0:01:53]} d6 {[%emt 0:00:30]} 2. d4 {[%emt 0:00:09]} Nf6 {[%emt 0:00:10]} 3. Nc3 {[%emt 0:00:06]} e5 {[%emt 0:00:13]} 4. Nf3 {[%emt 0:00:07]} Nbd7 {[%emt 0:00:16]} 5. Bc4 {[%emt 0:00:07]} Be7 {[%emt 0:00:29]} 6. a4 {[%emt 0:00:05]} O-O {[%emt 0:00:43]} 7. a5 {[%emt 0:00:03]} c6 {[%emt 0:00:42]} 8. O-O {[%emt 0:00:08]} h6 {[%emt 0:00:53]} 9. h3 {[%emt 0:00:59]} Nxe4 {[%emt 0:12:17]} 10. Nxe4 {[%emt 0:00:08]} d5 {[%emt 0:00:11] White is slightly better.} 11. Bb3 {[%emt 0:00:07]} dxe4 {[%emt 0:00:26]} 12. Nxe5 {[%emt 0:00:05]} Nxe5 {[%emt 0:10:27]} 13. dxe5 {[%emt 0:00:17]} Bf5 {[%emt 0:15:05]} 14. Qh5 {[%emt 0:03:10]} Qc8 {[%emt 0:11:08]} ({Black should try} 14... Bg5 $1 $14) 15. Be3 {[%emt 0:00:50] White is more active.} (15. Re1 $16) 15... Be6 $11 {[%emt 0:03:01]} 16. Ra4 $36 {[%emt 0:00:26][%mdl 2048] Black is under pressure.} Bxb3 {[%emt 0:03:53]} 17. cxb3 {[%emt 0:00:05]} Qe6 {[%emt 0:00:43]} 18. Rxe4 {[%emt 0:00:07]} f5 {[%emt 0:00:38] Wards off Qg4} 19. Rc4 {[%emt 0:00:19]} b5 {[%emt 0:09:02]} (19... Qxe5 $11 20. a6 bxa6) 20. axb6 $16 {[%emt 0:02:19]} axb6 {[%emt 0:00:56]} 21. Bxb6 {[%emt 0:00:48]} Rfb8 {[%emt 0:00:27]} 22. Bd4 {[%emt 0:02:08]} Rxb3 {[%emt 0:05:46]} 23. Qe2 {[%emt 0:00:39]} Rab8 {[%emt 0:04:46]} 24. Rfc1 {[%emt 0:02:25]} c5 {[%emt 0:00:25]} 25. Bc3 {[%emt 0:00:05]} Rd8 {[%emt 0:03:53]} (25... Ra8 $16 {is a better defense.} 26. Rb1 g5) 26. Ra4 $18 {[%emt 0:00:17][%cal Bc4a4,Ba4a7,Ba7g7][%mdl 32]} Rb6 {[%emt 0:00:17]} 27. Ra7 {[%emt 0:01:09]} Rc6 {[%emt 0:00:37]} 28. Rd1 {[%emt 0:01:58] Rxd8+ would now be deadly.} Rcd6 {[%emt 0:05:31]} 29. Rxd6 {[%emt 0:00:27]} (29. exd6 Qxe2 30. Re1 (30. Rxe7 $2 {too greedy.} Qxd1+ 31. Re1 Qxd6 $19) 30... Qxe1+ 31. Bxe1 Bxd6 $14) 29... Rxd6 {[%emt 0:00:12]} 30. Kh2 {[%emt 0:04:40]} Bg5 $2 {[%emt 0:03:47] [#]} (30... Rd7 {was called for.} 31. Ra6 Rd6) 31. Rxg7+ $3 {[%emt 0:02:14][%mdl 512] Weighted Error Value: White=0.13 (very precise) /Black=0.35.  Mistake:       	White=1     	Black=4      Inaccurate:     	---       	Black=2      OK:         	White=8     	Black=8      Best:        	White=1     	Black=3} 1-0

[Event "NY Presidents Day Schiller-C 2024"]
[Site "New York"]
[Date "2024.02.17"]
[Round "4.6"]
[White "Martin Del Campo Cardenas, Roberto Abel"]
[Black "Yoo, Eugene"]
[Result "1/2-1/2"]
[ECO "B32"]
[WhiteElo "2205"]
[BlackElo "2168"]
[Annotator "RC"]
[PlyCount "30"]
[EventDate "2024.02.14"]
[EventType "schev"]
[EventCountry "USA"]
[SourceTitle "playchess.com"]
[Source "ChessBase"]
[SourceQuality "1"]
[TimeControl "5400+30"]

1. e4 {[%emt 0:03:20]} c5 {[%emt 0:00:09]} 2. Nf3 {[%emt 0:00:23]} Nc6 {[%emt 0:00:02]} 3. d4 {[%emt 0:00:20]} cxd4 {[%emt 0:00:05]} 4. Nxd4 {[%emt 0:00:02]} e5 {[%emt 0:00:06]} 5. Nb5 {[%emt 0:00:19]} d6 {[%emt 0:00:12]} 6. N1c3 {[%emt 0:00:30]} a6 {[%emt 0:00:18]} 7. Na3 {[%emt 0:00:04]} Be6 {[%emt 0:00:04]} 8. Be3 {[%emt 0:02:44]} Rb8 {[%emt 0:07:49]} 9. Nd5 {[%emt 0:04:54]} b5 {[%emt 0:09:11]} 10. c4 {[%emt 0:01:54]} b4 {[%emt 0:01:23]} 11. Nc2 {[%emt 0:00:38]} Nf6 {[%emt 0:03:39]} 12. Bg5 {[%emt 0:01:24]} Be7 {[%emt 0:01:14]} 13. Bxf6 {[%emt 0:00:28]} Bxf6 {[%emt 0:00:03]} 14. Nxf6+ {[%emt 0:00:30]} gxf6 {[%emt 0:00:56]} 15. b3 {[%emt 0:00:48]} a5 {[%emt 0:14:20]} 1/2-1/2

[Event "NY Presidents Day Schiller-C 2024"]
[Site "New York"]
[Date "2024.02.17"]
[Round "4.7"]
[White "Podavonov, Alisher"]
[Black "Liu, Kelsey"]
[Result "1-0"]
[ECO "E11"]
[WhiteElo "2175"]
[BlackElo "2004"]
[Annotator "RC"]
[PlyCount "91"]
[EventDate "2024.02.14"]
[EventType "schev"]
[EventCountry "USA"]
[SourceTitle "playchess.com"]
[Source "ChessBase"]
[SourceQuality "1"]
[TimeControl "5400+30"]

1. d4 {[%emt 0:00:01]} Nf6 {[%emt 0:00:23]} 2. c4 {[%emt 0:00:09]} e6 {[%emt 0:00:08]} 3. g3 {[%emt 0:00:04]} d5 {[%emt 0:00:20]} 4. Nf3 {[%emt 0:00:07]} Bb4+ {[%emt 0:00:45]} 5. Bd2 {[%emt 0:00:06]} Bxd2+ {[%emt 0:00:06]} 6. Qxd2 {[%emt 0:01:10]} O-O {[%emt 0:00:22]} 7. Bg2 {[%emt 0:00:09]} c6 {[%emt 0:01:02]} 8. O-O {[%emt 0:00:23]} Nbd7 {[%emt 0:00:52]} 9. Qc2 {[%emt 0:02:59]} b6 {[%emt 0:02:39]} 10. Nbd2 {[%emt 0:01:35]} Bb7 {[%emt 0:01:53]} 11. e4 {[%emt 0:02:35]} dxe4 {[%emt 0:05:29]} 12. Nxe4 {[%emt 0:00:17]} Nxe4 {[%emt 0:02:13]} 13. Qxe4 {[%emt 0:00:05]} Nf6 {[%emt 0:00:06]} 14. Qe3 {[%emt 0:08:20]} Qc7 {[%emt 0:02:48]} 15. c5 {[%emt 0:00:55]} Nd5 {[%emt 0:03:20]} 16. Qe4 {[%emt 0:00:57]} Rfd8 {[%emt 0:03:50]} 17. Rac1 {[%emt 0:00:31]} Rac8 {[%emt 0:01:35]} 18. Rfe1 {[%emt 0:01:43]} Nf6 {[%emt 0:04:42]} 19. Qh4 {[%emt 0:03:07]} Qd7 {[%emt 0:08:34]} 20. a3 {[%emt 0:10:05]} Qd5 {[%emt 0:04:29]} 21. b4 {[%emt 0:04:30]} Qb3 {[%emt 0:06:37]} 22. h3 {[%emt 0:05:21]} Rc7 {[%emt 0:03:06]} 23. Re3 {[%emt 0:10:15]} Qb2 {[%emt 0:00:32]} 24. Rd1 {[%emt 0:00:28]} Rcd7 {[%emt 0:03:10]} 25. Red3 {[%emt 0:00:53]} Ba6 {[%emt 0:07:07]} 26. R3d2 {[%emt 0:01:00]} Qxa3 {[%emt 0:04:03]} 27. Ne5 {[%emt 0:00:32]} Rc7 {[%emt 0:04:40]} 28. Ng4 {[%emt 0:12:04]} Qxb4 {[%emt 0:07:56]} 29. Nxf6+ {[%emt 0:01:52]} gxf6 {[%emt 0:00:04]} 30. Qxf6 {[%emt 0:00:30]} Rdd7 {[%emt 0:00:17]} 31. h4 {[%emt 0:10:41]} Bc4 {[%emt 0:05:11]} 32. h5 {[%emt 0:01:03]} Kf8 {[%emt 0:00:11]} 33. Be4 {[%emt 0:03:15]} Bb3 {[%emt 0:02:03]} 34. Bxh7 {[%emt 0:06:57]} Bxd1 {[%emt 0:00:17]} 35. Rxd1 {[%emt 0:00:28]} Qa4 {[%emt 0:03:24]} 36. Rd3 {[%emt 0:01:39]} bxc5 {[%emt 0:01:14]} 37. h6 {[%emt 0:03:04]} Rxd4 {[%emt 0:00:37]} 38. Be4 {[%emt 0:02:40]} Rxd3 {[%emt 0:04:29]} 39. h7 {[%emt 0:00:10]} Rxg3+ {[%emt 0:09:26]} 40. fxg3 {[%emt 0:00:19]} Qd1+ {[%emt 0:00:00]} 41. Kf2 {[%emt 0:02:40]} Qd2+ {[%emt 0:00:00]} 42. Kf3 {[%emt 0:00:35]} Qd1+ {[%emt 0:00:00]} 43. Kf4 {[%emt 0:01:10]} e5+ {[%emt 0:00:00]} 44. Kg5 {[%emt 0:00:44]} Qd2+ {[%emt 0:00:00]} 45. Kg4 {[%emt 0:01:02]} Qd1+ {[%emt 0:00:00]} 46. Kh4 {[%emt 0:00:20]} 1-0

[Event "NY Presidents Day Schiller-C 2024"]
[Site "New York"]
[Date "2024.02.17"]
[Round "4.8"]
[White "Gaw, Chloe"]
[Black "Lapshun, Yury"]
[Result "0-1"]
[ECO "E53"]
[WhiteElo "1928"]
[BlackElo "2337"]
[Annotator "TA"]
[PlyCount "114"]
[EventDate "2024.02.14"]
[EventType "schev"]
[EventCountry "USA"]
[SourceTitle "playchess.com"]
[Source "ChessBase"]
[SourceQuality "1"]
[TimeControl "5400+30"]

{[%evp 12,114,6,-5,0,-2,33,26,36,38,56,0,0,-8,0,-11,0,-16,-8,-16,-14,-22,-16,-24,-41,-25,-25,-38,-34,-31,-40,-28,-21,-19,-8,-67,-5,-7,4,4,65,0,0,-10,-20,-20,-22,-18,-18,-31,0,0,0,0,0,0,0,0,0,0,0,0,0,0,0,0,0,0,0,0,0,0,0,0,0,-85,-96,-147,-159,-274,-174,-381,-362,-581,-801,-768,-654,-912,-643,-580,-993,-1443,-1531,-29980,-29981,-29944,-12810,-29985,-29986,-29986,-29987,-29987,-29988,-29988,-29989]} 1. d4 {[%emt 0:00:02]} Nf6 2. c4 {[%emt 0:00:30]} e6 3. Nc3 {[%emt 0:00:30]} Bb4 4. e3 {[%emt 0:00:30]} O-O 5. Bd3 {[%emt 0:00:30]} d5 6. Nf3 {[%emt 0:00:30]} c5 7. cxd5 {[%emt 0:00:30]} exd5 8. dxc5 {[%emt 0:00:30]} Nc6 {[%cal Od8e7]} 9. h3 {[%emt 0:00:30]} Be6 {White has an edge.} 10. O-O {[%emt 0:00:30]} Rc8 11. Bd2 {[%emt 0:00:30]} (11. Na4 $14) 11... Bxc5 $11 12. Nb5 {[%emt 0:00:30]} Ne4 13. Bc3 {[%emt 0:00:30]} Nxc3 (13... a6 $5 14. Nbd4 $8 Nxc3 15. bxc3 g6 $11) 14. bxc3 {[%emt 0:00:30]} Qf6 15. Nbd4 {[%emt 0:00:30]} Ne5 16. Nxe5 {[%emt 0:00:30]} Qxe5 17. Qb1 {[%emt 0:00:30]} Bd6 18. Nf3 {[%emt 0:00:30] Inhibits Qh2+.} Qh5 19. Be2 b6 {[%emt 1:40:00]} (19... Rxc3 20. Qxb7 Qg6 21. Kh1 $11) 20. Qd3 {[%emt 1:31:58]} Rc5 {[%emt 0:00:30]} 21. c4 {[%emt 0:00:30]} Rd8 {[%emt 0:00:30]} 22. cxd5 {[%emt 0:00:30]} Bxd5 {[%emt 0:00:30]} (22... Qxd5 {simplifies} 23. Qxd5 Bxd5 24. Rfd1 Kf8) 23. Qd4 {[%emt 0:00:30]} (23. Rac1 $11) 23... Be6 {[%emt 0:00:30] This pair of bishops is nice.} (23... Qh6 $15 24. Qa4 Ra5) 24. Rfd1 {[%emt 0:00:30]} Rd7 {[%emt 0:00:30][%cal Od6h2]} 25. Qe4 {[%emt 0:00:30]} Bf8 {[%emt 0:00:30]} (25... g6 $11) 26. Nd4 {[%emt 0:00:30]} (26. Rxd7 $14 Bxd7 27. Qb7) 26... Bd5 {[%emt 0:00:30]} 27. Bxh5 {[%emt 0:00:30]} Bxe4 {[%emt 0:00:30]} 28. Bf3 {[%emt 0:00:30]} Bxf3 {[%emt 0:00:30]} 29. Nxf3 {[%emt 0:00:30]} Rdc7 {[%emt 0:00:30]} 30. Rd2 {[%emt 0:00:30]} f6 {[%emt 0:00:30]} 31. Rad1 {[%emt 0:00:30]} Kf7 {[%emt 0:00:30]} 32. Kf1 {[%emt 0:00:30]} Be7 {[%emt 0:00:30]} 33. Ke2 {[%emt 0:00:30]} b5 {[%emt 0:00:30]} 34. Nd4 {[%emt 0:00:30]} a6 {[%emt 0:00:30]} 35. Nb3 Rc4 {[%emt 0:00:30]} 36. Rd4 {[%emt 0:01:00]} Bb4 {[%emt 0:00:30]} 37. Rxc4 {[%emt 0:00:30]} bxc4 {[%emt 0:00:30][%mdl 4096] Endgame. KRB-KRN} 38. Nd4 {[%emt 0:00:30]} Bc3 {[%emt 0:00:30]} 39. Rc1 {[%emt 0:00:30]} Bxd4 {[%emt 0:00:30]} 40. exd4 {[%emt 0:00:30] KR-KR} Ke6 {[%emt 0:00:30]} 41. Kd2 {[%emt 0:00:30]} Kd5 {[%emt 0:00:30]} 42. Kc3 {[%emt 0:00:30]} Re7 {[%emt 0:00:30]} 43. Rc2 {[%emt 0:00:30] Wards off Re2} (43. Rb1 $11) 43... Re1 $17 {[%emt 0:00:30] Black is more active.} 44. Rd2 {[%emt 0:00:30]} (44. Rb2 $142) 44... h5 {[%emt 0:00:30]} 45. h4 {[%emt 0:00:30]} (45. Rb2 $17) 45... g5 {[%emt 0:00:30]} 46. hxg5 $2 {[%emt 0:00:30]} (46. Rb2) 46... fxg5 $19 {[%emt 0:00:30]} 47. g3 $2 {[%emt 0:00:30]} (47. f3) 47... h4 {[%emt 0:00:30]} 48. gxh4 {[%emt 0:00:30]} gxh4 {[%emt 0:00:30] [#] And now ...Rc1+ would win.} 49. f4 {[%emt 0:00:30]} Re3+ {[%emt 0:00:30]} 50. Kb4 {[%emt 0:00:30]} Rf3 {[%emt 0:00:30] Prevents Rf2.} 51. Ka5 {[%emt 0:00:30]} Rxf4 {[%emt 0:00:30] aiming for ...c3.} 52. Kxa6 {[%emt 0:00:30]} c3 {[%emt 0:00:30]} 53. Rc2 {[%emt 0:00:30]} Kxd4 {[%emt 0:00:30] [#] ( -> ...Kd3)} 54. Kb5 {[%emt 0:00:30]} Kd3 {[%emt 0:00:30] Black mates.} 55. Rh2 {[%emt 0:00:30]} c2 {[%emt 0:00:30]} 56. Rh3+ {[%emt 0:00:30]} Ke2 {[%emt 0:00:30]} 57. Rc3 {[%emt 0:00:30]} Kd2 {[%emt 0:00:30] Weighted Error Value: White=0.51/Black=0.15 (very precise) .  Mistake:       	White=8     	Black=2      Inaccurate:     	---       	Black=3      OK:         	White=17    	Black=18     Best:        	White=1     	Black=1} 0-1